{"text_format":"1","workbook":"xlsx","n_sheets":2,"sheets":["Feuil3","Feuil4"],"not_rendered":{"charts":0,"images":0,"macros":1,"external_links":0,"defined_names":3,"comments":0,"pivot_tables":0},"unopened":[],"bounds":{"document_bytes":16777216,"sheet_cells":100000,"rows_first":2000,"rows_last":500,"rows_between":2000,"halvings":0,"cell_chars":16384,"cell_head_chars":4096},"cells_cut":0,"cells_raw":0,"read":"whole","date_system":"1900"}

{"sheet":"Feuil3","index":0,"n_rows":20,"n_cols":8,"rows_kept":20,"cut":false,"hidden":false,"merged":[]}
[]
[]
[]
[]
[null,null,null,null,null,null,"LETTRES","CHIFFRES"]
[null,null,null,null,null,null,null,5]
[null,null,"A",1]
[null,null,"B",2]
[null,null,"C",3]
[null,null,"D",4]
[null,null,"E",5,null,null,"RESULTAT "]
[null,null,"F",6]
[]
[null,null,null,null,null,"NAME","LETTRES","CHIFFRES"]
[null,null,null,null,null,{"$f":"Feuil4!C24","v":0},{"$f":"Feuil4!D24","v":0},{"$f":"Feuil4!E24","v":0}]
[null,null,null,null,null,{"$f":"Feuil4!C25","v":0},{"$f":"Feuil4!D25","v":0},{"$f":"Feuil4!E25","v":0}]
[null,null,null,null,null,{"$f":"Feuil4!C26","v":0},{"$f":"Feuil4!D26","v":0},{"$f":"Feuil4!E26","v":0}]
[null,null,null,null,null,{"$f":"Feuil4!C27","v":0},{"$f":"Feuil4!D27","v":0},{"$f":"Feuil4!E27","v":0}]
[null,null,null,null,null,{"$f":"Feuil4!C28","v":0},{"$f":"Feuil4!D28","v":0},{"$f":"Feuil4!E28","v":0}]
[null,null,null,null,null,{"$f":"Feuil4!C29","v":0},{"$f":"Feuil4!D29","v":0},{"$f":"Feuil4!E29","v":0}]

{"sheet":"Feuil4","index":1,"n_rows":23,"n_cols":9,"rows_kept":23,"cut":false,"hidden":false,"merged":[]}
[]
[]
[]
[]
[]
[]
[]
[]
[null,null,"NAME","LETTRES","CHIFFRES",null,null,"LETTRES","CHIFFRES"]
[null,null,"PAPA","A",1,null,null,{"$f":"Feuil3!G6","v":0},{"$f":"Feuil3!H6","v":5}]
[null,null,"MAMANA ","B",2]
[null,null,"ANAIS","C",3]
[null,null,"CLEMENT","D",4]
[null,null,"SANDRINE","E",5]
[null,null,"ERIC","F",6]
[]
[]
[]
[]
[]
[]
[]
[null,null,"NAME","LETTRES","CHIFFRES"]